[Event "*** Titled Tuesday 3|2 Blitz"]
[Site "Chess.com"]
[Date "2015.02.24"]
[Round "8"]
[White "FytNob"]
[Black "LADIESGET2KNOWME"]
[Result "1/2-1/2"]
[WhiteElo "1877"]
[BlackElo "2285"]
[TimeControl "180+2"]
[EndTime "12:45:41 PST"]
[Termination "Game drawn by repetition"]

1. d4 {[%clk 0:03:00]} 1... Nf6 {[%clk 0:02:57.9]} 2. Bg5 {[%clk 0:03:00.3]}
2... Ne4 {[%clk 0:02:56.7]} 3. Bf4 {[%clk 0:03:01.1]} 3... c5 {[%clk 0:02:57.6]}
4. f3 {[%clk 0:03:01.8]} 4... Qa5+ {[%clk 0:02:56.1]} 5. c3 {[%clk 0:03:03.3]}
5... Nf6 {[%clk 0:02:56.2]} 6. d5 {[%clk 0:03:01.7]} 6... e6 {[%clk 0:02:51.2]}
7. e4 {[%clk 0:03:00.2]} 7... exd5 {[%clk 0:02:50]} 8. exd5 {[%clk 0:03:01.6]}
8... d6 {[%clk 0:02:48.5]} 9. Kf2 {[%clk 0:02:58.5]} 9... Be7 {[%clk 0:02:49.3]}
10. Qe1 {[%clk 0:02:52.6]} 10... Qc7 {[%clk 0:02:45.6]} 11. c4 {[%clk
0:02:52.8]} 11... O-O {[%clk 0:02:44.3]} 12. Nc3 {[%clk 0:02:52.5]} 12... Re8
{[%clk 0:02:45.1]} 13. Bd3 {[%clk 0:02:48.8]} 13... a6 {[%clk 0:02:45.8]} 14.
Qd2 {[%clk 0:02:47.2]} 14... b5 {[%clk 0:02:46.3]} 15. b3 {[%clk 0:02:47.1]}
15... b4 {[%clk 0:02:45]} 16. Ne4 {[%clk 0:02:41.2]} 16... Nxe4+ {[%clk
0:02:45.1]} 17. Bxe4 {[%clk 0:02:43.1]} 17... Nd7 {[%clk 0:02:45.9]} 18. Ne2
{[%clk 0:02:42.5]} 18... Bf6 {[%clk 0:02:41.6]} 19. Rae1 {[%clk 0:02:41.4]}
19... Ne5 {[%clk 0:02:42.7]} 20. Ng3 {[%clk 0:02:33]} 20... a5 {[%clk
0:02:32.3]} 21. Nh5 {[%clk 0:02:31.6]} 21... Qe7 {[%clk 0:02:18.4]} 22. Nxf6+
{[%clk 0:02:27.8]} 22... Qxf6 {[%clk 0:02:20.3]} 23. Bg5 {[%clk 0:02:27.3]}
23... Ng4+ {[%clk 0:02:14.8]} 24. Kg1 {[%clk 0:02:27.7]} 24... Qc3 {[%clk
0:01:16.9]} 25. fxg4 {[%clk 0:02:21]} 25... Bxg4 {[%clk 0:01:16.2]} 26. h3
{[%clk 0:02:20.6]} 26... Bf5 {[%clk 0:01:13.5]} 27. Kh2 {[%clk 0:01:59.7]} 27...
Bxe4 {[%clk 0:00:57]} 28. Qxc3 {[%clk 0:01:59]} 28... bxc3 {[%clk 0:00:57.5]}
29. Re3 {[%clk 0:02:00.5]} 29... c2 {[%clk 0:00:55.5]} 30. Rhe1 {[%clk
0:02:01.4]} 30... f5 {[%clk 0:00:55.7]} 31. g4 {[%clk 0:02:00.2]} 31... g6
{[%clk 0:00:47.2]} 32. Kg3 {[%clk 0:01:57.6]} 32... Kf7 {[%clk 0:00:46.6]} 33.
gxf5 {[%clk 0:01:56.3]} 33... gxf5 {[%clk 0:00:45.6]} 34. Kf4 {[%clk 0:01:50.4]}
34... a4 {[%clk 0:00:45.3]} 35. Rg3 {[%clk 0:01:30.3]} 35... axb3 {[%clk
0:00:43.9]} 36. axb3 {[%clk 0:01:32.2]} 36... Rg8 {[%clk 0:00:41.5]} 37. h4
{[%clk 0:01:23.5]} 37... Ra3 {[%clk 0:00:40.6]} 38. Rc1 {[%clk 0:01:22]} 38...
h6 {[%clk 0:00:29.5]} 39. Bxh6 {[%clk 0:01:22.8]} 39... Rxg3 {[%clk 0:00:30.7]}
40. Kxg3 {[%clk 0:01:24.7]} 40... Rxb3+ {[%clk 0:00:32]} 41. Kh2 {[%clk
0:01:19.7]} 41... Rc3 {[%clk 0:00:30.6]} 42. h5 {[%clk 0:01:17.5]} 42... Rxc4
{[%clk 0:00:29.7]} 43. Bf4 {[%clk 0:01:14]} 43... Rd4 {[%clk 0:00:28.1]} 44. h6
{[%clk 0:01:13.4]} 44... Rxd5 {[%clk 0:00:24]} 45. Kg3 {[%clk 0:01:12.6]} 45...
Kg6 {[%clk 0:00:20.8]} 46. Kf2 {[%clk 0:01:09.2]} 46... Rd1 {[%clk 0:00:21.1]}
47. Ke2 {[%clk 0:01:06.1]} 47... Rxc1 {[%clk 0:00:10.1]} 48. Bxc1 {[%clk
0:01:08]} 48... d5 {[%clk 0:00:11.9]} 49. Bf4 {[%clk 0:01:02.3]} 49... d4 {[%clk
0:00:08]} 50. Kd2 {[%clk 0:01:03.4]} 50... c4 {[%clk 0:00:08.9]} 51. Be5 {[%clk
0:01:01.4]} 51... d3 {[%clk 0:00:07.8]} 52. Bf4 {[%clk 0:01:00.8]} 52... c3+
{[%clk 0:00:08.7]} 53. Kxc3 {[%clk 0:01:01.6]} 53... Kh7 {[%clk 0:00:05.1]} 54.
Kd4 {[%clk 0:01:02.4]} 54... Kg6 {[%clk 0:00:05.1]} 55. Ke5 {[%clk 0:01:03.7]}
55... Bf3 {[%clk 0:00:04.9]} 56. Kd4 {[%clk 0:01:03.9]} 56... Be2 {[%clk
0:00:06.3]} 57. Ke3 {[%clk 0:01:04]} 57... Kh7 {[%clk 0:00:07.4]} 58. Kd4 {[%clk
0:01:04.2]} 58... Kg6 {[%clk 0:00:08.8]} 59. Ke5 {[%clk 0:01:05.4]} 59... Bd1
{[%clk 0:00:08.8]} 60. Ke6 {[%clk 0:01:05.7]} 60... Bh5 {[%clk 0:00:07.5]} 61.
Ke5 {[%clk 0:01:04.5]} 61... Kh7 {[%clk 0:00:08.5]} 62. Kf6 {[%clk 0:01:05.2]}
62... Be2 {[%clk 0:00:10.4]} 63. Kxf5 {[%clk 0:01:05.9]} 63... Bf1 {[%clk
0:00:08.9]} 64. Kf6 {[%clk 0:01:05.8]} 64... Be2 {[%clk 0:00:09.9]} 65. Kf7
{[%clk 0:01:05.8]} 65... Bd1 {[%clk 0:00:10.4]} 66. Kf6 {[%clk 0:01:07.1]} 66...
Be2 {[%clk 0:00:12.3]} 67. Kf7 {[%clk 0:01:08.6]} 67... Bd1 {[%clk 0:00:14.2]}
68. Kf6 {[%clk 0:01:10.2]} 68... Be2 {[%clk 0:00:16.1]} 69. Kf7 {[%clk
0:01:11.8]} 69... Bf1 {[%clk 0:00:18]} 70. Kf6 {[%clk 0:01:13.1]} 70... Bg2
{[%clk 0:00:19.9]} 71. Kf7 {[%clk 0:01:14.5]} 71... Bf3 {[%clk 0:00:21]} 72. Kf6
{[%clk 0:01:16]} 72... Be2 {[%clk 0:00:22.9]} 73. Kf7 {[%clk 0:01:17.5]} 73...
Bf1 {[%clk 0:00:24.1]} 74. Kf6 {[%clk 0:01:18.8]} 74... Be2 {[%clk 0:00:26]} 75.
Kf7 {[%clk 0:01:20.4]} 75... Bf3 {[%clk 0:00:27.9]} 76. Kf6 {[%clk 0:01:21.5]}
76... Be2 {[%clk 0:00:29.8]} 77. Kf7 {[%clk 0:01:22.9]} 77... Bd1 {[%clk
0:00:31.7]} 78. Kf6 {[%clk 0:01:24.4]} 78... Be2 {[%clk 0:00:33.6]} 79. Kf7
{[%clk 0:01:26]} 79... Bg4 {[%clk 0:00:35.5]} 80. Kf6 {[%clk 0:01:27.5]} 80...
Bh3 {[%clk 0:00:36.9]} 81. Kf7 {[%clk 0:01:28.9]} 81... Bg2 {[%clk 0:00:38.8]}
82. Kf6 {[%clk 0:01:30.4]} 82... Bh1 {[%clk 0:00:40.7]} 83. Kf7 {[%clk 0:01:32]}
83... Bd5+ {[%clk 0:00:42.3]} 84. Kf6 {[%clk 0:01:33.2]} 84... Bb3 {[%clk
0:00:44.2]} 85. Ke5 {[%clk 0:01:32.2]} 85... Ba2 {[%clk 0:00:46.1]} 86. Kd4
{[%clk 0:01:33.5]} 86... Bb3 {[%clk 0:00:48]} 87. Kxd3 {[%clk 0:01:34.8]} 87...
Ba4 {[%clk 0:00:49.8]} 88. Kc3 {[%clk 0:01:35.8]} 88... Bd7 {[%clk 0:00:51.4]}
89. Kxc2 {[%clk 0:01:36.9]} 89... Bf5+ {[%clk 0:00:53.3]} 90. Kc3 {[%clk
0:01:38.2]} 90... Bg6 {[%clk 0:00:55.2]} 91. Kd4 {[%clk 0:01:40.1]} 91... Bf5
{[%clk 0:00:56.7]} 92. Ke5 {[%clk 0:01:42]} 92... Bg6 {[%clk 0:00:58.6]} 93. Kf6
{[%clk 0:01:43.9]} 93... Bb1 {[%clk 0:00:59.9]} 94. Kf7 {[%clk 0:01:44]} 94...
Bc2 {[%clk 0:01:01.8]} 95. Kf6 {[%clk 0:01:45.2]} 95... Bb1 {[%clk 0:01:03.7]}
96. Bc1 {[%clk 0:01:45.3]} 96... Bc2 {[%clk 0:01:05.6]} 97. Kf7 {[%clk
0:01:46.6]} 97... Bb1 {[%clk 0:01:07.5]} 98. Kf6 {[%clk 0:01:48]} 98... Bc2
{[%clk 0:01:09.4]} 99. Kf7 {[%clk 0:01:49.6]} 99... Bb1 {[%clk 0:01:11.3]} 100.
Kf6 {[%clk 0:01:51.1]} 100... Bc2 {[%clk 0:01:13.2]} 101. Kf7 {[%clk 0:01:52.6]}
101... Bb1 {[%clk 0:01:14.7]} 1/2-1/2

[Event "*** Titled Tuesday 3|2 Blitz"]
[Site "Chess.com"]
[Date "2015.02.24"]
[Round "8"]
[White "Ar4uha"]
[Black "1stSecond"]
[Result "1-0"]
[WhiteElo "2469"]
[BlackElo "2380"]
[TimeControl "180+2"]
[EndTime "12:46:25 PST"]
[Termination "Ar4uha won by resignation"]

1. e4 {[%clk 0:02:44.2]} 1... e5 {[%clk 0:02:59.5]} 2. Nf3 {[%clk 0:02:44.7]}
2... Nc6 {[%clk 0:03:01.1]} 3. d4 {[%clk 0:02:45.4]} 3... exd4 {[%clk
0:03:02.5]} 4. Bc4 {[%clk 0:02:45.7]} 4... d6 {[%clk 0:02:58.8]} 5. Nxd4 {[%clk
0:02:45.2]} 5... Nf6 {[%clk 0:02:57.5]} 6. Nc3 {[%clk 0:02:45.5]} 6... Be7
{[%clk 0:02:58.4]} 7. O-O {[%clk 0:02:45.5]} 7... O-O {[%clk 0:02:59.2]} 8. Bf4
{[%clk 0:02:45.4]} 8... Ne5 {[%clk 0:02:59.5]} 9. Be2 {[%clk 0:02:45.8]} 9... c6
{[%clk 0:03:00.4]} 10. Nf3 {[%clk 0:02:44.3]} 10... Qc7 {[%clk 0:02:59.7]} 11.
Bg3 {[%clk 0:02:41.9]} 11... h6 {[%clk 0:02:54.1]} 12. Qd2 {[%clk 0:02:42.4]}
12... Rd8 {[%clk 0:02:54.1]} 13. Rfd1 {[%clk 0:02:40.2]} 13... a5 {[%clk
0:02:51.1]} 14. a4 {[%clk 0:02:40.8]} 14... Be6 {[%clk 0:02:51.5]} 15. Qd4
{[%clk 0:02:37.1]} 15... Nfd7 {[%clk 0:02:49.9]} 16. Qd2 {[%clk 0:02:27.3]}
16... Nxf3+ {[%clk 0:02:50.2]} 17. Bxf3 {[%clk 0:02:25.1]} 17... Ne5 {[%clk
0:02:51.5]} 18. Be2 {[%clk 0:02:25.3]} 18... Nc4 {[%clk 0:02:44.8]} 19. Bxc4
{[%clk 0:02:21]} 19... Bxc4 {[%clk 0:02:44.5]} 20. Ne2 {[%clk 0:02:09]} 20...
Qb6 {[%clk 0:02:41.8]} 21. b3 {[%clk 0:02:02.5]} 21... Be6 {[%clk 0:02:40.7]}
22. Nd4 {[%clk 0:01:59.6]} 22... Bg4 {[%clk 0:02:41.6]} 23. f3 {[%clk 0:01:59]}
23... Bc8 {[%clk 0:02:39]} 24. Bf2 {[%clk 0:01:59]} 24... Qc7 {[%clk 0:02:36.8]}
25. Qf4 {[%clk 0:01:46.4]} 25... Bf6 {[%clk 0:02:37.2]} 26. Rab1 {[%clk
0:01:43.3]} 26... Be5 {[%clk 0:02:35.4]} 27. Qh4 {[%clk 0:01:43.5]} 27... d5
{[%clk 0:02:35]} 28. Ne2 {[%clk 0:01:12.3]} 28... Bf6 {[%clk 0:02:29.3]} 29. Qg3
{[%clk 0:01:06.5]} 29... Qxg3 {[%clk 0:02:29.7]} 30. Nxg3 {[%clk 0:01:08]} 30...
Be6 {[%clk 0:02:27.8]} 31. Bb6 {[%clk 0:01:07.3]} 31... Rd7 {[%clk 0:02:26.8]}
32. exd5 {[%clk 0:01:02.3]} 32... Rxd5 {[%clk 0:02:23.7]} 33. c4 {[%clk
0:00:46.9]} 33... Rxd1+ {[%clk 0:02:21]} 34. Rxd1 {[%clk 0:00:48.5]} 34... Be7
{[%clk 0:02:11.9]} 35. Ne4 {[%clk 0:00:48]} 35... Bf5 {[%clk 0:02:12.7]} 36. Kf2
{[%clk 0:00:46.6]} 36... Bb4 {[%clk 0:02:08.2]} 37. Rd8+ {[%clk 0:00:18.6]}
37... Rxd8 {[%clk 0:02:08.9]} 38. Bxd8 {[%clk 0:00:20.3]} 38... Bxe4 {[%clk
0:02:10.8]} 39. fxe4 {[%clk 0:00:21.5]} 39... Kf8 {[%clk 0:02:12.7]} 40. Ke3
{[%clk 0:00:22.3]} 40... Ke8 {[%clk 0:02:14.1]} 41. Bb6 {[%clk 0:00:23.4]} 41...
Kd7 {[%clk 0:02:15.5]} 42. Bd4 {[%clk 0:00:23.6]} 42... g6 {[%clk 0:02:16.1]}
43. Bg7 {[%clk 0:00:24.7]} 43... h5 {[%clk 0:02:17.2]} 44. Kd4 {[%clk
0:00:25.4]} 44... Ke6 {[%clk 0:02:11]} 45. h3 {[%clk 0:00:26.1]} 45... Bd2
{[%clk 0:02:07.2]} 46. Kd3 {[%clk 0:00:24.1]} 46... Be1 {[%clk 0:02:07.7]} 47.
Bd4 {[%clk 0:00:23.4]} 47... f5 {[%clk 0:02:05.3]} 48. exf5+ {[%clk 0:00:21.5]}
48... Kxf5 {[%clk 0:02:07.2]} 49. Bb6 {[%clk 0:00:22.6]} 49... g5 {[%clk
0:02:06.3]} 50. Bc7 {[%clk 0:00:21.7]} 50... Bb4 {[%clk 0:02:03.9]} 51. Bd8
{[%clk 0:00:21.9]} 51... g4 {[%clk 0:02:00.8]} 52. Kd4 {[%clk 0:00:20.6]} 52...
Be1 {[%clk 0:01:50.2]} 53. Kc5 {[%clk 0:00:17.4]} 53... Ke6 {[%clk 0:01:48.2]}
54. Kb6 {[%clk 0:00:13.3]} 54... Kd7 {[%clk 0:01:48.3]} 55. Bg5 {[%clk
0:00:13.8]} 55... Kc8 {[%clk 0:01:49]} 56. hxg4 {[%clk 0:00:14.6]} 56... hxg4
{[%clk 0:01:49.4]} 57. Be7 {[%clk 0:00:15.8]} 57... Bc3 {[%clk 0:01:45.8]} 58.
Bc5 {[%clk 0:00:16.3]} 58... Bd2 {[%clk 0:01:43.3]} 59. Bd6 {[%clk 0:00:17.1]}
59... Be1 {[%clk 0:01:43.1]} 60. Be5 {[%clk 0:00:16.8]} 60... g3 {[%clk
0:01:35.1]} 61. Bd6 {[%clk 0:00:16]} 61... Kd7 {[%clk 0:01:36.2]} 62. Bf4 {[%clk
0:00:15.9]} 62... Kc8 {[%clk 0:01:36.9]} 63. Be5 {[%clk 0:00:17.4]} 63... Bf2+
{[%clk 0:01:28.2]} 64. Kxa5 {[%clk 0:00:18.4]} 64... Be1+ {[%clk 0:01:26.5]} 65.
Kb6 {[%clk 0:00:18.9]} 65... Bf2+ {[%clk 0:01:27.5]} 66. c5 {[%clk 0:00:20.1]}
66... Be1 {[%clk 0:01:28.5]} 67. Bd6 {[%clk 0:00:19.3]} 67... Bf2 {[%clk
0:01:28.9]} 68. b4 {[%clk 0:00:19.9]} 68... Be1 {[%clk 0:01:27.8]} 69. b5 {[%clk
0:00:21.1]} 69... cxb5 {[%clk 0:01:27.7]} 70. Kxb5 {[%clk 0:00:19.2]} 70... Bf2
{[%clk 0:01:29.1]} 71. c6 {[%clk 0:00:18.3]} 71... bxc6+ {[%clk 0:01:29.4]} 72.
Kxc6 {[%clk 0:00:20.2]} 72... Be1 {[%clk 0:01:31.3]} 73. Be5 {[%clk 0:00:19.5]}
73... Bf2 {[%clk 0:01:28.9]} 74. a5 {[%clk 0:00:19.9]} 74... Be1 {[%clk
0:01:26.1]} 75. a6 {[%clk 0:00:20]} 75... Bf2 {[%clk 0:01:28]} 76. Bd6 {[%clk
0:00:19.3]} 76... Ba7 {[%clk 0:01:25.3]} 77. Bxg3 {[%clk 0:00:18.4]} 77... Be3
{[%clk 0:01:26.2]} 78. Bd6 {[%clk 0:00:19.2]} 78... Ba7 {[%clk 0:01:01.6]} 79.
g4 {[%clk 0:00:19.4]} 79... Be3 {[%clk 0:01:01.7]} 80. g5 {[%clk 0:00:17.2]}
80... Bd4 {[%clk 0:01:01.9]} 81. g6 {[%clk 0:00:18]} 1-0

[Event "*** Titled Tuesday 3|2 Blitz"]
[Site "Chess.com"]
[Date "2015.02.24"]
[Round "8"]
[White "Kacparov"]
[Black "Nouki"]
[Result "0-1"]
[WhiteElo "2447"]
[BlackElo "2641"]
[TimeControl "180+2"]
[EndTime "12:47:26 PST"]
[Termination "Nouki won by resignation"]

1. e4 {[%clk 0:03:00]} 1... e5 {[%clk 0:02:58.8]} 2. Nf3 {[%clk 0:03:00.6]} 2...
Nc6 {[%clk 0:03:00.3]} 3. Bc4 {[%clk 0:03:01.5]} 3... Nf6 {[%clk 0:02:57]} 4. d3
{[%clk 0:03:02.2]} 4... Bc5 {[%clk 0:02:58.3]} 5. c3 {[%clk 0:03:02.9]} 5... O-O
{[%clk 0:02:59.5]} 6. Bb3 {[%clk 0:03:04]} 6... d5 {[%clk 0:02:57.9]} 7. exd5
{[%clk 0:02:54.5]} 7... Nxd5 {[%clk 0:02:59.8]} 8. h3 {[%clk 0:02:47.2]} 8...
Bf5 {[%clk 0:02:55.1]} 9. O-O {[%clk 0:02:44]} 9... Nb6 {[%clk 0:02:46]} 10. Bc2
{[%clk 0:02:18.9]} 10... Be7 {[%clk 0:02:46.6]} 11. Qe2 {[%clk 0:02:12.5]} 11...
Qd7 {[%clk 0:02:29.6]} 12. Nbd2 {[%clk 0:02:13.6]} 12... Rad8 {[%clk 0:02:28.6]}
13. Ne4 {[%clk 0:02:14.8]} 13... Rfe8 {[%clk 0:02:26.3]} 14. b4 {[%clk
0:01:48.8]} 14... Bf8 {[%clk 0:01:08.1]} 15. b5 {[%clk 0:01:47.8]} 15... Ne7
{[%clk 0:00:58.2]} 16. c4 {[%clk 0:01:45.1]} 16... Ng6 {[%clk 0:00:55.7]} 17. a4
{[%clk 0:01:35.8]} 17... Qc8 {[%clk 0:00:38.9]} 18. Bg5 {[%clk 0:01:15.1]} 18...
f6 {[%clk 0:00:37.2]} 19. Be3 {[%clk 0:01:13.6]} 19... Nd7 {[%clk 0:00:36]} 20.
Ng3 {[%clk 0:00:58.8]} 20... Nf4 {[%clk 0:00:32.8]} 21. Qd2 {[%clk 0:00:58.6]}
21... Nc5 {[%clk 0:00:26.1]} 22. Nxf5 {[%clk 0:00:58.4]} 22... Qxf5 {[%clk
0:00:26.4]} 23. d4 {[%clk 0:00:58.1]} 23... Ne4 {[%clk 0:00:27.4]} 24. Bxf4
{[%clk 0:00:34.4]} 24... Nxd2 {[%clk 0:00:20.9]} 25. Bxf5 {[%clk 0:00:34.7]}
25... Nxf3+ {[%clk 0:00:22.5]} 26. gxf3 {[%clk 0:00:35.5]} 26... exf4 {[%clk
0:00:24.4]} 27. Rad1 {[%clk 0:00:35.4]} 27... g6 {[%clk 0:00:24.2]} 28. Be4
{[%clk 0:00:35.9]} 28... b6 {[%clk 0:00:25.4]} 29. Rfe1 {[%clk 0:00:36]} 29...
Kg7 {[%clk 0:00:24.9]} 30. Bd5 {[%clk 0:00:36.1]} 30... Bb4 {[%clk 0:00:25.1]}
31. Rxe8 {[%clk 0:00:34.8]} 31... Rxe8 {[%clk 0:00:27]} 32. Kf1 {[%clk
0:00:35.8]} 32... f5 {[%clk 0:00:27.8]} 33. Rb1 {[%clk 0:00:36.5]} 33... Bc3
{[%clk 0:00:28.2]} 34. Rd1 {[%clk 0:00:38.1]} 34... Kf6 {[%clk 0:00:29.5]} 35.
Bc6 {[%clk 0:00:37]} 35... Re7 {[%clk 0:00:30.4]} 36. Bd5 {[%clk 0:00:35.4]}
36... Kg5 {[%clk 0:00:30]} 37. c5 {[%clk 0:00:28]} 37... Kh4 {[%clk 0:00:29.2]}
38. Kg2 {[%clk 0:00:26.9]} 38... Re2 {[%clk 0:00:29.7]} 39. Bc4 {[%clk
0:00:27.6]} 39... Rc2 {[%clk 0:00:29.7]} 40. Bb3 {[%clk 0:00:23.1]} 40... Rb2
{[%clk 0:00:30.5]} 41. Bg8 {[%clk 0:00:23.7]} 41... h6 {[%clk 0:00:30.8]} 42.
Bf7 {[%clk 0:00:23.9]} 42... g5 {[%clk 0:00:28.5]} 43. Be6 {[%clk 0:00:24]}
43... Rb4 {[%clk 0:00:29.8]} 44. Bxf5 {[%clk 0:00:22.8]} 44... Bxd4 {[%clk
0:00:29.7]} 45. cxb6 {[%clk 0:00:23.4]} 45... axb6 {[%clk 0:00:31.6]} 46. Rd2
{[%clk 0:00:22.6]} 46... Rxa4 {[%clk 0:00:31.2]} 47. Bd7 {[%clk 0:00:23.6]}
47... Rb4 {[%clk 0:00:32.1]} 48. Re2 {[%clk 0:00:24.8]} 48... Bc5 {[%clk
0:00:30.3]} 49. Rd2 {[%clk 0:00:25.7]} 49... Kh5 {[%clk 0:00:28.1]} 50. Be8+
{[%clk 0:00:26.4]} 50... Kh4 {[%clk 0:00:29.4]} 51. Bd7 {[%clk 0:00:27.9]} 51...
Rb1 {[%clk 0:00:29.5]} 52. Re2 {[%clk 0:00:28.6]} 52... Rb4 {[%clk 0:00:29.3]}
53. Rd2 {[%clk 0:00:29.7]} 53... Kh5 {[%clk 0:00:29.5]} 54. Be8+ {[%clk
0:00:30.6]} 54... Kh4 {[%clk 0:00:30.8]} 55. Bd7 {[%clk 0:00:32.3]} 55... Rc4
{[%clk 0:00:32.4]} 56. Re2 {[%clk 0:00:31.8]} 56... Rd4 {[%clk 0:00:33.9]} 57.
Be8 {[%clk 0:00:31.4]} 57... h5 {[%clk 0:00:34.1]} 58. Bc6 {[%clk 0:00:29.7]}
58... Rd3 {[%clk 0:00:34.2]} 59. Rc2 {[%clk 0:00:29.5]} 59... g4 {[%clk
0:00:32.5]} 60. hxg4 {[%clk 0:00:31.4]} 60... hxg4 {[%clk 0:00:34.4]} 61. fxg4
{[%clk 0:00:32.6]} 61... Kxg4 {[%clk 0:00:36.3]} 62. f3+ {[%clk 0:00:21.4]}
62... Kh4 {[%clk 0:00:36.4]} 63. Re2 {[%clk 0:00:22.3]} 63... Be3 {[%clk
0:00:36.5]} 64. Rc2 {[%clk 0:00:23.1]} 64... Rd1 {[%clk 0:00:36.2]} 65. Kh2
{[%clk 0:00:21.9]} 65... Kg5 {[%clk 0:00:33.5]} 66. Kg2 {[%clk 0:00:23.1]} 66...
Kf6 {[%clk 0:00:34.2]} 67. Rc4 {[%clk 0:00:21.9]} 67... Bd4 {[%clk 0:00:34.4]}
68. Rc2 {[%clk 0:00:22.7]} 68... Ke5 {[%clk 0:00:35]} 69. Re2+ {[%clk
0:00:23.7]} 69... Be3 {[%clk 0:00:36.4]} 70. Rc2 {[%clk 0:00:24.8]} 70... Kd4
{[%clk 0:00:37]} 71. Ra2 {[%clk 0:00:25.8]} 71... Kc5 {[%clk 0:00:33.6]} 72. Kh3
{[%clk 0:00:26.2]} 72... Rg1 {[%clk 0:00:34.1]} 73. Rg2 {[%clk 0:00:26.8]} 73...
Rc1 {[%clk 0:00:33.3]} 74. Kg4 {[%clk 0:00:28.2]} 74... Kd6 {[%clk 0:00:34.9]}
75. Kf5 {[%clk 0:00:28.7]} 75... Rxc6 {[%clk 0:00:35.6]} 76. bxc6 {[%clk
0:00:28.4]} 76... Kxc6 {[%clk 0:00:37.5]} 77. Ke4 {[%clk 0:00:28.7]} 77... Kb5
{[%clk 0:00:38.7]} 78. Rb2+ {[%clk 0:00:28.6]} 78... Kc5 {[%clk 0:00:40]} 79.
Rc2+ {[%clk 0:00:28.9]} 79... Kd6 {[%clk 0:00:41.6]} 80. Kd3 {[%clk 0:00:27.7]}
80... b5 {[%clk 0:00:42.7]} 81. Ra2 {[%clk 0:00:28]} 81... c5 {[%clk 0:00:43.4]}
82. Ra8 {[%clk 0:00:28.9]} 82... c4+ {[%clk 0:00:42.5]} 83. Kc3 {[%clk
0:00:30.2]} 83... Bb6 {[%clk 0:00:39.5]} 84. Rb8 {[%clk 0:00:27.4]} 84... Kc6
{[%clk 0:00:40.5]} 85. Rc8+ {[%clk 0:00:28]} 85... Bc7 {[%clk 0:00:41.7]} 86.
Rf8 {[%clk 0:00:27.1]} 86... Be5+ {[%clk 0:00:41.8]} 87. Kc2 {[%clk 0:00:27.6]}
87... b4 {[%clk 0:00:43.3]} 88. Rf5 {[%clk 0:00:28.1]} 88... Kd5 {[%clk
0:00:44.5]} 89. Rf8 {[%clk 0:00:28]} 89... b3+ {[%clk 0:00:46]} 90. Kd2 {[%clk
0:00:29.1]} 90... c3+ {[%clk 0:00:46.4]} 91. Kd3 {[%clk 0:00:30.4]} 91... c2
{[%clk 0:00:47.9]} 92. Rd8+ {[%clk 0:00:30.8]} 92... Ke6 {[%clk 0:00:47.5]} 93.
Rc8 {[%clk 0:00:32]} 93... Bb2 {[%clk 0:00:44.1]} 94. Kd2 {[%clk 0:00:32.6]}
94... Kf5 {[%clk 0:00:44.8]} 95. Rc5+ {[%clk 0:00:32.6]} 95... Ke6 {[%clk
0:00:45.4]} 96. Rc8 {[%clk 0:00:33.1]} 96... Kd5 {[%clk 0:00:46.9]} 97. Rd8+
{[%clk 0:00:33.9]} 97... Ke5 {[%clk 0:00:48.4]} 98. Re8+ {[%clk 0:00:34]} 98...
Kf5 {[%clk 0:00:49.5]} 99. Rc8 {[%clk 0:00:33.6]} 99... c1=Q+ {[%clk 0:00:50.8]}
100. Rxc1 {[%clk 0:00:34.4]} 100... Bxc1+ {[%clk 0:00:52.7]} 101. Kxc1 {[%clk
0:00:35.8]} 101... Kg5 {[%clk 0:00:54.6]} 102. Kb2 {[%clk 0:00:37.3]} 102... Kh4
{[%clk 0:00:55.7]} 103. Kxb3 {[%clk 0:00:39.2]} 103... Kg3 {[%clk 0:00:57.6]}
0-1